[Event "Early Titled Tuesday Blitz | February 8 2022"]
[White "Cramling Bellon, Anna"]
[Black "Vusatiuk, Vladimir"]
[WhiteFideId "32009232"]
[BlackFideId "14118610"]
[WhiteElo "1905"]
[BlackElo "2157"]
[Result "0-1"]
[Round "01"]
[TimeControl "180+1"]
[Date "2022.02.08"]
[WhiteClock "0:00:07"]
[BlackClock "0:00:05"]

1. d4 {[%clk 0:02:55]}  Nf6 {[%clk 0:02:59]} 2. c4 {[%clk 0:02:55]}  e6 {[%clk 0:02:59]} 3. Nc3 {[%clk 0:02:55]}  Bb4 {[%clk 0:02:59]} 4. Qc2 {[%clk 0:02:56]}  d5 {[%clk 0:02:48]} 5. cxd5 {[%clk 0:02:55]}  exd5 {[%clk 0:02:49]} 6. Bg5 {[%clk 0:02:55]}  O-O {[%clk 0:02:48]} 7. e3 {[%clk 0:02:54]}  h6 {[%clk 0:02:48]} 8. Bh4 {[%clk 0:02:55]}  Re8 {[%clk 0:02:28]} 9. Nf3 {[%clk 0:02:53]}  c6 {[%clk 0:02:22]} 10. Bd3 {[%clk 0:02:46]}  Nbd7 {[%clk 0:02:22]} 11. O-O {[%clk 0:02:44]}  Bd6 {[%clk 0:02:07]} 12. Rac1 {[%clk 0:02:42]}  Qe7 {[%clk 0:01:58]} 13. a3 {[%clk 0:02:34]}  g5 {[%clk 0:01:55]} 14. Bg3 {[%clk 0:02:32]}  Bxg3 {[%clk 0:01:55]} 15. hxg3 {[%clk 0:02:33]}  a5 {[%clk 0:01:47]} 16. Rfe1 {[%clk 0:02:28]}  Ne4 {[%clk 0:01:47]} 17. Nd2 {[%clk 0:02:23]}  f5 {[%clk 0:01:40]} 18. Nf1 {[%clk 0:02:11]}  Ndf6 {[%clk 0:01:34]} 19. f3 {[%clk 0:02:08]}  Nxc3 {[%clk 0:01:34]} 20. bxc3 {[%clk 0:02:03]}  f4 {[%clk 0:01:25]} 21. exf4 {[%clk 0:01:53]}  Qxe1 {[%clk 0:01:25]} 22. Rxe1 {[%clk 0:01:52]}  Rxe1 {[%clk 0:01:26]} 23. Kf2 {[%clk 0:01:53]}  Re7 {[%clk 0:01:21]} 24. fxg5 {[%clk 0:01:52]}  hxg5 {[%clk 0:01:22]} 25. Ne3 {[%clk 0:01:46]}  Bd7 {[%clk 0:01:11]} 26. Bf5 {[%clk 0:01:30]}  Be8 {[%clk 0:01:04]} 27. Ng4 {[%clk 0:01:10]}  Kg7 {[%clk 0:01:01]} 28. Qd2 {[%clk 0:00:58]}  Nxg4+ {[%clk 0:00:33]} 29. Bxg4 {[%clk 0:00:53]}  Kf8 {[%clk 0:00:34]} 30. Qxg5 {[%clk 0:00:52]}  Bf7 {[%clk 0:00:27]} 31. Qh6+ {[%clk 0:00:50]}  Kg8 {[%clk 0:00:26]} 32. Bf5 {[%clk 0:00:49]}  Be8 {[%clk 0:00:17]} 33. Be6+ {[%clk 0:00:38]}  Bf7 {[%clk 0:00:15]} 34. Qg5+ {[%clk 0:00:21]}  Kf8 {[%clk 0:00:15]} 35. Bf5 {[%clk 0:00:07]}  Ke8 {[%clk 0:00:11]} 36. Qh6 {[%clk 0:00:04]}  Bg8 {[%clk 0:00:11]} 37. Qf6 {[%clk 0:00:03]}  Rd8 {[%clk 0:00:08]} 38. Bg6+ {[%clk 0:00:04]}  Kd7 {[%clk 0:00:09]} 39. Qf5+ {[%clk 0:00:04]}  Be6 {[%clk 0:00:08]} 40. Qg5 {[%clk 0:00:04]}  Rg8 {[%clk 0:00:08]} 41. Qf6 {[%clk 0:00:04]}  Reg7 {[%clk 0:00:07]} 42. Bf5 {[%clk 0:00:04]}  Bxf5 {[%clk 0:00:08]} 43. Qxf5+ {[%clk 0:00:05]}  Kc7 {[%clk 0:00:09]} 44. g4 {[%clk 0:00:05]}  Re8 {[%clk 0:00:07]} 45. Qf4+ {[%clk 0:00:04]}  Kb6 {[%clk 0:00:07]} 46. Qf6 {[%clk 0:00:04]}  Rge7 {[%clk 0:00:07]} 47. Kg3 {[%clk 0:00:04]}  Kb5 {[%clk 0:00:07]} 48. Qd6 {[%clk 0:00:04]}  Kc4 {[%clk 0:00:07]} 49. Qc5+ {[%clk 0:00:05]}  Kd3 {[%clk 0:00:08]} 50. a4 {[%clk 0:00:05]}  Re6 {[%clk 0:00:06]} 51. Qxa5 {[%clk 0:00:05]}  b6 {[%clk 0:00:05]} 52. Qxb6 {[%clk 0:00:05]}  Kxc3 {[%clk 0:00:06]} 53. Qc5+ {[%clk 0:00:05]}  Kd3 {[%clk 0:00:06]} 54. a5 {[%clk 0:00:06]}  Ra8 {[%clk 0:00:05]} 55. Qb4 {[%clk 0:00:03]}  Rae8 {[%clk 0:00:05]} 56. a6 {[%clk 0:00:03]}  Re1 {[%clk 0:00:04]} 57. Qb3+ {[%clk 0:00:03]}  Kxd4 {[%clk 0:00:04]} 58. a7 {[%clk 0:00:04]}  R1e7 {[%clk 0:00:04]} 59. Qb6+ {[%clk 0:00:03]}  c5 {[%clk 0:00:04]} 60. Qc6 {[%clk 0:00:03]}  Rxa7 {[%clk 0:00:03]} 61. Qxe8 {[%clk 0:00:03]}  c4 {[%clk 0:00:03]} 62. Qh8+ {[%clk 0:00:03]}  Kd3 {[%clk 0:00:03]} 63. Qe5 {[%clk 0:00:03]}  Ra3 {[%clk 0:00:02]} 64. Qxd5+ {[%clk 0:00:04]}  Kc3 {[%clk 0:00:02]} 65. Qc5 {[%clk 0:00:03]}  Kb3 {[%clk 0:00:03]} 66. g5 {[%clk 0:00:03]}  c3 {[%clk 0:00:03]} 67. Kf4 {[%clk 0:00:04]}  c2 {[%clk 0:00:04]} 68. g6 {[%clk 0:00:04]}  Ra4+ {[%clk 0:00:04]} 69. Kf5 {[%clk 0:00:04]}  Rc4 {[%clk 0:00:05]} 70. Qb5+ {[%clk 0:00:04]}  Kc3 {[%clk 0:00:05]} 71. Qa4 {[%clk 0:00:04]}  c1=Q {[%clk 0:00:05]} 72. Qa2 {[%clk 0:00:04]}  Rc5+ {[%clk 0:00:05]} 73. Ke6 {[%clk 0:00:05]}  Qe3+ {[%clk 0:00:04]} 74. Kd7 {[%clk 0:00:05]}  Qd3+ {[%clk 0:00:03]} 75. Ke7 {[%clk 0:00:05]}  Re5+ {[%clk 0:00:03]} 76. Kf6 {[%clk 0:00:06]}  Qf5+ {[%clk 0:00:04]} 77. Kg7 {[%clk 0:00:06]}  Re7+ {[%clk 0:00:04]} 78. Kh6 {[%clk 0:00:07]}  Qf4+ {[%clk 0:00:05]} 79. Kh5 {[%clk 0:00:07]}  Re5# {[%clk 0:00:05]} 0-1


[Site "https://www.chess.com"]

[Event "Early Titled Tuesday Blitz | February 8 2022"]
[White "De Silva, L M S T"]
[Black "Gombocz, Ferenc Jr."]
[WhiteFideId "9953698"]
[BlackFideId "775029"]
[WhiteElo "1631"]
[BlackElo "1913"]
[Result "1-0"]
[Round "01"]
[TimeControl "180+1"]
[Date "2022.02.08"]
[WhiteClock "0:01:13"]
[BlackClock "0:00:03"]

1. e4 {[%clk 0:03:00]}  e5 {[%clk 0:02:59]} 2. Nf3 {[%clk 0:03:01]}  Nc6 {[%clk 0:02:57]} 3. Bb5 {[%clk 0:03:01]}  a6 {[%clk 0:02:56]} 4. Ba4 {[%clk 0:03:02]}  d6 {[%clk 0:02:55]} 5. O-O {[%clk 0:03:01]}  g6 {[%clk 0:02:54]} 6. d4 {[%clk 0:03:00]}  exd4 {[%clk 0:02:51]} 7. Nxd4 {[%clk 0:03:01]}  Bd7 {[%clk 0:02:52]} 8. c3 {[%clk 0:02:58]}  Bg7 {[%clk 0:02:43]} 9. Bc2 {[%clk 0:02:58]}  Nge7 {[%clk 0:02:41]} 10. Be3 {[%clk 0:02:53]}  O-O {[%clk 0:02:41]} 11. Nd2 {[%clk 0:02:53]}  d5 {[%clk 0:02:39]} 12. N4b3 {[%clk 0:02:46]}  dxe4 {[%clk 0:02:34]} 13. Nxe4 {[%clk 0:02:44]}  Bf5 {[%clk 0:02:30]} 14. Qe2 {[%clk 0:02:24]}  Re8 {[%clk 0:02:25]} 15. Rad1 {[%clk 0:02:23]}  Qc8 {[%clk 0:02:24]} 16. f3 {[%clk 0:02:17]}  Ne5 {[%clk 0:02:14]} 17. Bd4 {[%clk 0:02:15]}  N7c6 {[%clk 0:02:06]} 18. Be3 {[%clk 0:02:14]}  Be6 {[%clk 0:01:57]} 19. Qf2 {[%clk 0:02:05]}  f5 {[%clk 0:01:26]} 20. Ng5 {[%clk 0:02:03]}  Bc4 {[%clk 0:01:24]} 21. Rfe1 {[%clk 0:02:03]}  h6 {[%clk 0:01:21]} 22. Nh3 {[%clk 0:02:02]}  Bf7 {[%clk 0:00:56]} 23. Qh4 {[%clk 0:01:56]}  g5 {[%clk 0:00:53]} 24. Bxg5 {[%clk 0:01:44]}  Ng6 {[%clk 0:00:47]} 25. Qg3 {[%clk 0:01:42]}  hxg5 {[%clk 0:00:46]} 26. Qxg5 {[%clk 0:01:43]}  Rxe1+ {[%clk 0:00:38]} 27. Rxe1 {[%clk 0:01:44]}  Qd8 {[%clk 0:00:33]} 28. Qxf5 {[%clk 0:01:43]}  Qf6 {[%clk 0:00:20]} 29. Qd7 {[%clk 0:01:42]}  Nce5 {[%clk 0:00:16]} 30. Qxc7 {[%clk 0:01:40]}  Nh4 {[%clk 0:00:15]} 31. Nd4 {[%clk 0:01:38]}  Rd8 {[%clk 0:00:14]} 32. Rxe5 {[%clk 0:01:32]}  Qxe5 {[%clk 0:00:04]} 33. Qxd8+ {[%clk 0:01:32]}  Be8 {[%clk 0:00:05]} 34. Bb3+ {[%clk 0:01:21]}  Kf8 {[%clk 0:00:04]} 35. Ne6+ {[%clk 0:01:21]}  Kf7 {[%clk 0:00:03]} 36. Nxg7+ {[%clk 0:01:21]}  Kxg7 {[%clk 0:00:03]} 37. Qxh4 {[%clk 0:01:19]}  Qe3+ {[%clk 0:00:03]} 38. Qf2 {[%clk 0:01:19]}  Qc1+ {[%clk 0:00:03]} 39. Qf1 {[%clk 0:01:19]}  Qe3+ {[%clk 0:00:04]} 40. Nf2 {[%clk 0:01:19]}  Qd2 {[%clk 0:00:04]} 41. Nd3 {[%clk 0:01:15]}  Qe3+ {[%clk 0:00:03]} 42. Kh1 {[%clk 0:01:15]}  Bb5 {[%clk 0:00:03]} 43. c4 {[%clk 0:01:15]}  Bc6 {[%clk 0:00:03]} 44. Nb4 {[%clk 0:01:13]} 1-0


[Site "https://www.chess.com"]

[Event "Early Titled Tuesday Blitz | February 8 2022"]
[White "Demin, Vladimir"]
[Black "Shimanov, Aleksandr"]
[WhiteFideId "4167457"]
[BlackFideId "4198603"]
[WhiteElo "2488"]
[BlackElo "2636"]
[Result "1/2-1/2"]
[Round "01"]
[TimeControl "180+1"]
[Date "2022.02.08"]
[WhiteClock "0:00:06"]
[BlackClock "0:00:05"]

1. d4 {[%clk 0:03:00]}  d5 {[%clk 0:02:57]} 2. Nc3 {[%clk 0:02:59]}  Nf6 {[%clk 0:02:48]} 3. Bf4 {[%clk 0:03:00]}  c5 {[%clk 0:02:46]} 4. e3 {[%clk 0:03:00]}  cxd4 {[%clk 0:02:45]} 5. exd4 {[%clk 0:03:00]}  Bg4 {[%clk 0:02:44]} 6. f3 {[%clk 0:02:58]}  Bd7 {[%clk 0:02:43]} 7. g4 {[%clk 0:02:56]}  e6 {[%clk 0:02:37]} 8. Bd3 {[%clk 0:02:52]}  Nc6 {[%clk 0:02:32]} 9. Nge2 {[%clk 0:02:52]}  a6 {[%clk 0:02:19]} 10. a3 {[%clk 0:02:52]}  b5 {[%clk 0:02:15]} 11. h4 {[%clk 0:02:51]}  Qb6 {[%clk 0:02:11]} 12. Be3 {[%clk 0:02:36]}  Bd6 {[%clk 0:02:05]} 13. h5 {[%clk 0:02:30]}  h6 {[%clk 0:02:05]} 14. Qd2 {[%clk 0:02:25]}  Na5 {[%clk 0:01:58]} 15. b3 {[%clk 0:02:07]}  Rc8 {[%clk 0:01:56]} 16. Kf2 {[%clk 0:01:32]}  b4 {[%clk 0:01:49]} 17. Nb1 {[%clk 0:01:30]}  Ke7 {[%clk 0:01:36]} 18. a4 {[%clk 0:01:23]}  Nc6 {[%clk 0:01:18]} 19. Qd1 {[%clk 0:01:12]}  Kd8 {[%clk 0:01:16]} 20. Nd2 {[%clk 0:01:11]}  Kc7 {[%clk 0:01:15]} 21. a5 {[%clk 0:01:11]}  Nxa5 {[%clk 0:01:11]} 22. Qb1 {[%clk 0:01:05]}  Ra8 {[%clk 0:01:11]} 23. c4 {[%clk 0:00:51]}  bxc3 {[%clk 0:01:11]} 24. Rc1 {[%clk 0:00:51]}  Rhb8 {[%clk 0:01:09]} 25. Rxc3+ {[%clk 0:00:50]}  Kd8 {[%clk 0:01:09]} 26. g5 {[%clk 0:00:43]}  hxg5 {[%clk 0:00:59]} 27. Bxg5 {[%clk 0:00:43]}  Be7 {[%clk 0:00:59]} 28. Qh1 {[%clk 0:00:33]}  Rc8 {[%clk 0:00:54]} 29. Rxc8+ {[%clk 0:00:30]}  Rxc8 {[%clk 0:00:54]} 30. h6 {[%clk 0:00:30]}  gxh6 {[%clk 0:00:55]} 31. Qxh6 {[%clk 0:00:31]}  Ne8 {[%clk 0:00:52]} 32. Bxe7+ {[%clk 0:00:25]}  Kxe7 {[%clk 0:00:53]} 33. Qh4+ {[%clk 0:00:25]}  Nf6 {[%clk 0:00:50]} 34. Nf1 {[%clk 0:00:20]}  Nb7 {[%clk 0:00:15]} 35. Ne3 {[%clk 0:00:20]}  Nd6 {[%clk 0:00:14]} 36. Ng4 {[%clk 0:00:19]}  Ne8 {[%clk 0:00:14]} 37. Rxa6 {[%clk 0:00:19]}  Qxb3 {[%clk 0:00:14]} 38. Ne5 {[%clk 0:00:16]}  Rc7 {[%clk 0:00:13]} 39. Qh8 {[%clk 0:00:12]}  Qb7 {[%clk 0:00:10]} 40. Ra1 {[%clk 0:00:12]}  Qb2 {[%clk 0:00:09]} 41. Rg1 {[%clk 0:00:12]}  Bb5 {[%clk 0:00:05]} 42. Bxb5 {[%clk 0:00:11]}  Qxb5 {[%clk 0:00:06]} 43. Qh4 {[%clk 0:00:10]}  Kd8 {[%clk 0:00:06]} 44. Rg8 {[%clk 0:00:09]}  Ke7 {[%clk 0:00:06]} 45. Rh8 {[%clk 0:00:09]}  Qb1 {[%clk 0:00:05]} 46. Rh6 {[%clk 0:00:08]}  Qb2 {[%clk 0:00:04]} 47. Ng4 {[%clk 0:00:07]}  Rc2 {[%clk 0:00:04]} 48. Rxf6 {[%clk 0:00:06]}  Rxe2+ {[%clk 0:00:04]} 49. Kg3 {[%clk 0:00:06]}  Rg2+ {[%clk 0:00:04]} 50. Kh3 {[%clk 0:00:06]}  Rh2+ {[%clk 0:00:03]} 51. Nxh2 {[%clk 0:00:06]}  Nxf6 {[%clk 0:00:04]} 52. Ng4 {[%clk 0:00:07]}  Qxd4 {[%clk 0:00:04]} 53. Qg5 {[%clk 0:00:06]}  Qc3 {[%clk 0:00:04]} 54. Kg2 {[%clk 0:00:06]}  Qb2+ {[%clk 0:00:04]} 55. Kh3 {[%clk 0:00:06]}  Qd4 {[%clk 0:00:05]} 56. Kg2 {[%clk 0:00:06]}  Qb2+ {[%clk 0:00:05]} 57. Kh3 {[%clk 0:00:06]}  Qa1 {[%clk 0:00:05]} 58. Kg2 {[%clk 0:00:07]}  Qd4 {[%clk 0:00:04]} 59. Kh3 {[%clk 0:00:07]}  Qb2 {[%clk 0:00:05]} 60. Kg3 {[%clk 0:00:06]}  Qa1 {[%clk 0:00:04]} 61. Kg2 {[%clk 0:00:06]}  Qd4 {[%clk 0:00:03]} 62. Kh2 {[%clk 0:00:06]}  Qb2+ {[%clk 0:00:04]} 63. Kg3 {[%clk 0:00:06]}  Qa1 {[%clk 0:00:05]} 64. Kg2 {[%clk 0:00:06]} 1/2-1/2


[Site "https://www.chess.com"]

[Event "Early Titled Tuesday Blitz | February 8 2022"]
[White "Di Nicolantonio, Lucas"]
[Black "Necula, Iulian"]
[WhiteFideId "680460"]
[BlackFideId "1232380"]
[WhiteElo "2381"]
[BlackElo "1776"]
[Result "1-0"]
[Round "01"]
[TimeControl "180+1"]
[Date "2022.02.08"]
[WhiteClock "0:02:10"]
[BlackClock "0:01:48"]

1. e4 {[%clk 0:02:57]}  g6 {[%clk 0:02:59]} 2. d4 {[%clk 0:02:57]}  c6 {[%clk 0:03:00]} 3. Nc3 {[%clk 0:02:56]}  d5 {[%clk 0:03:00]} 4. Be3 {[%clk 0:02:56]}  dxe4 {[%clk 0:03:00]} 5. Nxe4 {[%clk 0:02:55]}  Nf6 {[%clk 0:03:01]} 6. Nxf6+ {[%clk 0:02:54]}  exf6 {[%clk 0:03:01]} 7. Qd2 {[%clk 0:02:52]}  Bg7 {[%clk 0:03:02]} 8. h4 {[%clk 0:02:47]}  O-O {[%clk 0:03:03]} 9. h5 {[%clk 0:02:48]}  Bf5 {[%clk 0:02:42]} 10. O-O-O {[%clk 0:02:43]}  Re8 {[%clk 0:02:39]} 11. Bh6 {[%clk 0:02:36]}  Bh8 {[%clk 0:02:38]} 12. Ne2 {[%clk 0:02:25]}  Be6 {[%clk 0:02:11]} 13. Nf4 {[%clk 0:02:16]}  Nd7 {[%clk 0:01:50]} 14. hxg6 {[%clk 0:02:10]}  fxg6 {[%clk 0:01:48]} 15. Nxe6 {[%clk 0:02:10]}  Rxe6 {[%clk 0:01:48]} 16. Bc4 {[%clk 0:02:10]} 1-0


[Site "https://www.chess.com"]

[Event "Early Titled Tuesday Blitz | February 8 2022"]
[White "Dobre, Claudiu-Cristian"]
[Black "Indjic, Aleksandar"]
[WhiteFideId "1211854"]
[BlackFideId "911925"]
[WhiteElo "2207"]
[BlackElo "2616"]
[Result "0-1"]
[Round "01"]
[TimeControl "180+1"]
[Date "2022.02.08"]
[WhiteClock "0:00:04"]
[BlackClock "0:01:52"]

1. c4 {[%clk 0:02:58]}  b6 {[%clk 0:02:57]} 2. Nf3 {[%clk 0:02:48]}  Bb7 {[%clk 0:02:56]} 3. g3 {[%clk 0:02:49]}  c5 {[%clk 0:02:55]} 4. Bg2 {[%clk 0:02:48]}  g6 {[%clk 0:02:55]} 5. O-O {[%clk 0:02:43]}  Bg7 {[%clk 0:02:55]} 6. d4 {[%clk 0:02:42]}  cxd4 {[%clk 0:02:54]} 7. Nxd4 {[%clk 0:02:42]}  Bxg2 {[%clk 0:02:53]} 8. Kxg2 {[%clk 0:02:42]}  Qc8 {[%clk 0:02:52]} 9. Na3 {[%clk 0:02:33]}  Nc6 {[%clk 0:02:45]} 10. Nac2 {[%clk 0:02:22]}  Nxd4 {[%clk 0:02:43]} 11. Nxd4 {[%clk 0:02:22]}  Qxc4 {[%clk 0:02:43]} 12. Be3 {[%clk 0:02:18]}  Nf6 {[%clk 0:02:43]} 13. b3 {[%clk 0:01:47]}  Qd5+ {[%clk 0:02:41]} 14. f3 {[%clk 0:01:46]}  O-O {[%clk 0:02:39]} 15. Qd3 {[%clk 0:01:27]}  Qb7 {[%clk 0:02:36]} 16. Rac1 {[%clk 0:01:23]}  Rac8 {[%clk 0:02:35]} 17. Nb5 {[%clk 0:01:18]}  a6 {[%clk 0:02:32]} 18. Nc3 {[%clk 0:01:17]}  b5 {[%clk 0:02:31]} 19. Rfd1 {[%clk 0:01:14]}  d6 {[%clk 0:02:30]} 20. Nd5 {[%clk 0:01:12]}  Nxd5 {[%clk 0:02:25]} 21. Qxd5 {[%clk 0:01:09]}  Qxd5 {[%clk 0:02:24]} 22. Rxd5 {[%clk 0:01:10]}  Rxc1 {[%clk 0:02:23]} 23. Bxc1 {[%clk 0:01:08]}  Rc8 {[%clk 0:02:24]} 24. Bg5 {[%clk 0:01:08]}  Rc2 {[%clk 0:02:19]} 25. Kf2 {[%clk 0:01:00]}  Kf8 {[%clk 0:02:13]} 26. Rd2 {[%clk 0:00:58]}  Rc6 {[%clk 0:02:11]} 27. Be3 {[%clk 0:00:50]}  e6 {[%clk 0:02:07]} 28. Bd4 {[%clk 0:00:48]}  Bxd4+ {[%clk 0:02:04]} 29. Rxd4 {[%clk 0:00:48]}  h5 {[%clk 0:02:04]} 30. a4 {[%clk 0:00:48]}  Ke7 {[%clk 0:02:03]} 31. axb5 {[%clk 0:00:47]}  axb5 {[%clk 0:02:03]} 32. Rb4 {[%clk 0:00:40]}  Rc5 {[%clk 0:02:03]} 33. h4 {[%clk 0:00:37]}  e5 {[%clk 0:02:02]} 34. g4 {[%clk 0:00:37]}  Ke6 {[%clk 0:01:59]} 35. gxh5 {[%clk 0:00:31]}  gxh5 {[%clk 0:01:59]} 36. Ke3 {[%clk 0:00:24]}  d5 {[%clk 0:01:58]} 37. Kd2 {[%clk 0:00:15]}  f6 {[%clk 0:01:57]} 38. e3 {[%clk 0:00:14]}  Kd6 {[%clk 0:01:57]} 39. f4 {[%clk 0:00:14]}  Kc7 {[%clk 0:01:53]} 40. fxe5 {[%clk 0:00:14]}  fxe5 {[%clk 0:01:53]} 41. e4 {[%clk 0:00:04]}  d4 {[%clk 0:01:52]} 0-1


[Site "https://www.chess.com"]

[Event "Early Titled Tuesday Blitz | February 8 2022"]
[White "Domingo Nunez, Alejandro"]
[Black "Winkels, Marcel"]
[WhiteFideId "22245561"]
[BlackFideId "1003887"]
[WhiteElo "2215"]
[BlackElo "1900"]
[Result "1-0"]
[Round "01"]
[TimeControl "180+1"]
[Date "2022.02.08"]
[WhiteClock "0:01:55"]
[BlackClock "0:00:26"]

1. Nf3 {[%clk 0:02:55]}  Nf6 {[%clk 0:02:57]} 2. g3 {[%clk 0:02:52]}  d5 {[%clk 0:02:57]} 3. Bg2 {[%clk 0:02:52]}  Nbd7 {[%clk 0:02:57]} 4. d4 {[%clk 0:02:50]}  Nb6 {[%clk 0:02:56]} 5. a4 {[%clk 0:02:49]}  a5 {[%clk 0:02:55]} 6. c3 {[%clk 0:02:48]}  Bf5 {[%clk 0:02:51]} 7. Nh4 {[%clk 0:02:48]}  Bg6 {[%clk 0:02:48]} 8. Nxg6 {[%clk 0:02:48]}  hxg6 {[%clk 0:02:48]} 9. Nd2 {[%clk 0:02:47]}  e6 {[%clk 0:02:45]} 10. Qb3 {[%clk 0:02:45]}  Be7 {[%clk 0:02:40]} 11. e4 {[%clk 0:02:45]}  O-O {[%clk 0:02:33]} 12. O-O {[%clk 0:02:42]}  c6 {[%clk 0:02:05]} 13. e5 {[%clk 0:02:23]}  Nfd7 {[%clk 0:02:04]} 14. f4 {[%clk 0:02:24]}  c5 {[%clk 0:01:53]} 15. Nf3 {[%clk 0:02:23]}  Nc4 {[%clk 0:01:48]} 16. Qd1 {[%clk 0:02:22]}  Rc8 {[%clk 0:01:42]} 17. b3 {[%clk 0:02:21]}  Ncb6 {[%clk 0:01:40]} 18. Bd2 {[%clk 0:02:20]}  c4 {[%clk 0:01:36]} 19. b4 {[%clk 0:02:18]}  axb4 {[%clk 0:01:35]} 20. a5 {[%clk 0:02:18]}  bxc3 {[%clk 0:01:25]} 21. Bxc3 {[%clk 0:02:17]}  Na8 {[%clk 0:01:24]} 22. Qb1 {[%clk 0:02:17]}  Qc7 {[%clk 0:01:21]} 23. g4 {[%clk 0:02:17]}  b6 {[%clk 0:01:17]} 24. a6 {[%clk 0:02:15]}  Rb8 {[%clk 0:01:17]} 25. f5 {[%clk 0:02:15]}  b5 {[%clk 0:01:08]} 26. fxe6 {[%clk 0:02:13]}  fxe6 {[%clk 0:01:07]} 27. Qxg6 {[%clk 0:02:13]}  Qc6 {[%clk 0:00:58]} 28. Bd2 {[%clk 0:02:12]}  c3 {[%clk 0:00:30]} 29. Bh6 {[%clk 0:01:55]}  Rf7 {[%clk 0:00:27]} 30. Ng5 {[%clk 0:01:56]}  Bxg5 {[%clk 0:00:25]} 31. Qxf7+ {[%clk 0:01:54]}  Kh7 {[%clk 0:00:26]} 32. Qxg7# {[%clk 0:01:55]} 1-0


[Site "https://www.chess.com"]

[Event "Early Titled Tuesday Blitz | February 8 2022"]
[White "Dzhaparov, Medet"]
[Black "Ozen, Deniz"]
[WhiteFideId "13803689"]
[BlackFideId "6349196"]
[WhiteElo "1702"]
[BlackElo "2326"]
[Result "0-1"]
[Round "01"]
[TimeControl "180+1"]
[Date "2022.02.08"]
[WhiteClock "0:00:16"]
[BlackClock "0:00:21"]

1. e4 {[%clk 0:02:55]}  e5 {[%clk 0:03:00]} 2. Nf3 {[%clk 0:02:55]}  Nf6 {[%clk 0:03:01]} 3. Nxe5 {[%clk 0:02:54]}  d5 {[%clk 0:03:01]} 4. exd5 {[%clk 0:02:52]}  Qxd5 {[%clk 0:03:02]} 5. Nf3 {[%clk 0:02:52]}  Nc6 {[%clk 0:03:02]} 6. Nc3 {[%clk 0:02:51]}  Qh5 {[%clk 0:03:03]} 7. Be2 {[%clk 0:02:51]}  Bg4 {[%clk 0:03:03]} 8. O-O {[%clk 0:02:50]}  Bd6 {[%clk 0:03:01]} 9. h3 {[%clk 0:02:50]}  Bxh3 {[%clk 0:03:00]} 10. gxh3 {[%clk 0:02:48]}  Qxh3 {[%clk 0:03:01]} 11. Re1 {[%clk 0:02:44]}  O-O-O {[%clk 0:03:01]} 12. Bf1 {[%clk 0:02:43]}  Qh5 {[%clk 0:03:01]} 13. Bg2 {[%clk 0:02:37]}  g5 {[%clk 0:02:59]} 14. d3 {[%clk 0:02:28]}  g4 {[%clk 0:02:59]} 15. Nd2 {[%clk 0:02:28]}  Nd4 {[%clk 0:02:53]} 16. Kf1 {[%clk 0:02:09]}  Rhg8 {[%clk 0:02:01]} 17. Nce4 {[%clk 0:01:56]}  Nxe4 {[%clk 0:02:00]} 18. Nxe4 {[%clk 0:01:57]}  Nf3 {[%clk 0:01:59]} 19. Nf6 {[%clk 0:01:49]}  Qh4 {[%clk 0:01:30]} 20. Nxg8 {[%clk 0:01:47]}  Nh2+ {[%clk 0:01:28]} 21. Ke2 {[%clk 0:01:39]}  Rxg8 {[%clk 0:01:29]} 22. Be3 {[%clk 0:01:39]}  f5 {[%clk 0:01:25]} 23. Bd5 {[%clk 0:01:31]}  Re8 {[%clk 0:01:22]} 24. Kd2 {[%clk 0:01:28]}  c6 {[%clk 0:01:16]} 25. Bg2 {[%clk 0:01:24]}  f4 {[%clk 0:01:05]} 26. Bd4 {[%clk 0:01:18]}  Rd8 {[%clk 0:01:06]} 27. Rh1 {[%clk 0:01:08]}  f3 {[%clk 0:01:03]} 28. Bf1 {[%clk 0:01:04]}  Bf4+ {[%clk 0:01:03]} 29. Be3 {[%clk 0:01:04]}  Qxf2+ {[%clk 0:01:02]} 30. Kc1 {[%clk 0:01:01]}  Qxe3+ {[%clk 0:01:03]} 31. Kb1 {[%clk 0:01:00]}  g3 {[%clk 0:01:02]} 32. Bh3+ {[%clk 0:00:59]}  Kc7 {[%clk 0:01:03]} 33. a3 {[%clk 0:00:54]}  g2 {[%clk 0:00:40]} 34. Re1 {[%clk 0:00:54]}  Re8 {[%clk 0:00:32]} 35. Rxe3 {[%clk 0:00:48]}  Bxe3 {[%clk 0:00:33]} 36. Ka2 {[%clk 0:00:39]}  g1=Q {[%clk 0:00:34]} 37. Qxg1 {[%clk 0:00:38]}  Bxg1 {[%clk 0:00:35]} 38. Rxg1 {[%clk 0:00:39]}  f2 {[%clk 0:00:30]} 39. Rh1 {[%clk 0:00:38]}  Nf3 {[%clk 0:00:28]} 40. Rf1 {[%clk 0:00:34]}  Ng5 {[%clk 0:00:26]} 41. Bf5 {[%clk 0:00:24]}  Re2 {[%clk 0:00:24]} 42. Kb3 {[%clk 0:00:21]}  Kd6 {[%clk 0:00:20]} 43. Bxh7 {[%clk 0:00:21]}  Ke5 {[%clk 0:00:20]} 44. Bg8 {[%clk 0:00:20]}  Kf4 {[%clk 0:00:20]} 45. Kc3 {[%clk 0:00:20]}  Ke3 {[%clk 0:00:20]} 46. d4 {[%clk 0:00:17]}  Ne4+ {[%clk 0:00:19]} 47. Kb3 {[%clk 0:00:16]}  Nd2+ {[%clk 0:00:19]} 48. Kc3 {[%clk 0:00:15]}  Nxf1 {[%clk 0:00:20]} 49. Bc4 {[%clk 0:00:16]}  Ng3 {[%clk 0:00:21]} 0-1


[Site "https://www.chess.com"]

[Event "Early Titled Tuesday Blitz | February 8 2022"]
[White "Erigaisi Arjun"]
[Black "Lucas, Arthur"]
[WhiteFideId "35009192"]
[BlackFideId "26093073"]
[WhiteElo "2745"]
[BlackElo "2129"]
[Result "1-0"]
[Round "01"]
[TimeControl "180+1"]
[Date "2022.02.08"]
[WhiteClock "0:01:39"]
[BlackClock "0:01:02"]

1. e4 {[%clk 0:02:59]}  g6 {[%clk 0:02:52]} 2. d4 {[%clk 0:02:58]}  Bg7 {[%clk 0:02:53]} 3. Nc3 {[%clk 0:02:58]}  a6 {[%clk 0:02:53]} 4. Be3 {[%clk 0:02:58]}  d6 {[%clk 0:02:51]} 5. Qd2 {[%clk 0:02:57]}  b5 {[%clk 0:02:51]} 6. a4 {[%clk 0:02:56]}  b4 {[%clk 0:02:51]} 7. Nd5 {[%clk 0:02:55]}  a5 {[%clk 0:02:52]} 8. f3 {[%clk 0:02:50]}  e6 {[%clk 0:02:50]} 9. Nf4 {[%clk 0:02:50]}  Ne7 {[%clk 0:02:50]} 10. h4 {[%clk 0:02:49]}  h6 {[%clk 0:02:49]} 11. g4 {[%clk 0:02:48]}  Nd7 {[%clk 0:02:45]} 12. Nge2 {[%clk 0:02:46]}  Nb6 {[%clk 0:02:43]} 13. Ng3 {[%clk 0:02:43]}  Bb7 {[%clk 0:02:36]} 14. Bb5+ {[%clk 0:02:41]}  c6 {[%clk 0:02:35]} 15. Be2 {[%clk 0:02:41]}  Qc7 {[%clk 0:02:31]} 16. b3 {[%clk 0:02:38]}  c5 {[%clk 0:02:30]} 17. O-O-O {[%clk 0:02:25]}  cxd4 {[%clk 0:02:11]} 18. Bxd4 {[%clk 0:02:26]}  Bxd4 {[%clk 0:02:11]} 19. Qxd4 {[%clk 0:02:17]}  e5 {[%clk 0:02:11]} 20. Qxd6 {[%clk 0:02:16]}  Qxd6 {[%clk 0:01:58]} 21. Rxd6 {[%clk 0:02:17]}  Nec8 {[%clk 0:01:45]} 22. Bb5+ {[%clk 0:02:06]}  Ke7 {[%clk 0:01:44]} 23. Nxg6+ {[%clk 0:01:55]}  fxg6 {[%clk 0:01:25]} 24. Rxg6 {[%clk 0:01:56]}  Nd6 {[%clk 0:01:18]} 25. Rd1 {[%clk 0:01:43]}  Nbc8 {[%clk 0:01:13]} 26. Nf5+ {[%clk 0:01:38]}  Nxf5 {[%clk 0:01:06]} 27. Rd7+ {[%clk 0:01:39]}  Kf8 {[%clk 0:01:02]} 28. Rf6+ {[%clk 0:01:40]}  Kg8 {[%clk 0:01:02]} 29. Bc4+ {[%clk 0:01:39]} 1-0


[Site "https://www.chess.com"]